[Event "Titled Tuesday Blitz July 11 Late 2023"]
[White "Zakhartsov, Vladimir"]
[Black "Adewumi, Tanitoluwa"]
[WhiteFideId "4145097"]
[BlackFideId "30966396"]
[WhiteElo "2936"]
[BlackElo "2652"]
[Result "1/2-1/2"]
[Round "3"]
[TimeControl "180+2"]
[Date "2023.07.11"]
[WhiteClock "0:00:20"]
[BlackClock "0:00:44"]
[Board "23"]

1. d4 {[%clk 0:03:00]}  Nf6 {[%clk 0:02:58]} 2. c4 {[%clk 0:03:00]}  e6 {[%clk 0:02:56]} 3. Nf3 {[%clk 0:03:00]}  b6 {[%clk 0:02:55]} 4. a3 {[%clk 0:02:59]}  Bb7 {[%clk 0:02:55]} 5. Nc3 {[%clk 0:03:00]}  d5 {[%clk 0:02:55]} 6. cxd5 {[%clk 0:02:58]}  Nxd5 {[%clk 0:02:56]} 7. Qc2 {[%clk 0:02:58]}  Be7 {[%clk 0:02:53]} 8. e4 {[%clk 0:02:58]}  Nxc3 {[%clk 0:02:53]} 9. bxc3 {[%clk 0:02:59]}  c5 {[%clk 0:02:53]} 10. Bf4 {[%clk 0:02:53]}  O-O {[%clk 0:02:53]} 11. Bd3 {[%clk 0:02:52]}  cxd4 {[%clk 0:02:53]} 12. cxd4 {[%clk 0:02:52]}  Nc6 {[%clk 0:02:54]} 13. Be3 {[%clk 0:02:39]}  Rc8 {[%clk 0:02:53]} 14. Qe2 {[%clk 0:02:34]}  f5 {[%clk 0:02:53]} 15. exf5 {[%clk 0:02:20]}  exf5 {[%clk 0:02:52]} 16. O-O {[%clk 0:02:11]}  f4 {[%clk 0:02:52]} 17. Bc1 {[%clk 0:02:11]}  Bf6 {[%clk 0:02:53]} 18. Bb2 {[%clk 0:02:06]}  Nxd4 {[%clk 0:02:30]} 19. Bxd4 {[%clk 0:02:03]}  Bxd4 {[%clk 0:02:31]} 20. Rad1 {[%clk 0:01:51]}  Bxf3 {[%clk 0:02:14]} 21. Qxf3 {[%clk 0:01:51]}  Qf6 {[%clk 0:02:12]} 22. Bxh7+ {[%clk 0:01:20]}  Kxh7 {[%clk 0:02:10]} 23. Qe4+ {[%clk 0:01:20]}  Qg6 {[%clk 0:02:04]} 24. Qxd4 {[%clk 0:01:17]}  f3 {[%clk 0:02:00]} 25. g3 {[%clk 0:01:17]}  Qf5 {[%clk 0:01:52]} 26. Rfe1 {[%clk 0:01:04]}  Qh3 {[%clk 0:01:43]} 27. Qd3+ {[%clk 0:01:03]}  Rf5 {[%clk 0:01:40]} 28. Qf1 {[%clk 0:01:03]}  Qxf1+ {[%clk 0:01:39]} 29. Kxf1 {[%clk 0:01:03]}  Rc3 {[%clk 0:01:36]} 30. Re3 {[%clk 0:01:02]}  Rxe3 {[%clk 0:01:19]} 31. fxe3 {[%clk 0:01:02]}  Rc5 {[%clk 0:01:17]} 32. Kf2 {[%clk 0:00:56]}  Rc3 {[%clk 0:01:14]} 33. a4 {[%clk 0:00:56]}  Rc4 {[%clk 0:01:10]} 34. Rd4 {[%clk 0:00:51]}  Rc2+ {[%clk 0:01:05]} 35. Kxf3 {[%clk 0:00:52]}  Rxh2 {[%clk 0:01:06]} 36. Rd7 {[%clk 0:00:49]}  a5 {[%clk 0:01:00]} 37. Rd4 {[%clk 0:00:44]}  Rb2 {[%clk 0:00:58]} 38. Ke4 {[%clk 0:00:43]}  Kg6 {[%clk 0:00:58]} 39. Kd5 {[%clk 0:00:41]}  Rb3 {[%clk 0:00:59]} 40. Re4 {[%clk 0:00:39]}  Kf5 {[%clk 0:00:57]} 41. Re7 {[%clk 0:00:36]}  Kf6 {[%clk 0:00:56]} 42. Re6+ {[%clk 0:00:36]}  Kf7 {[%clk 0:00:56]} 43. Re4 {[%clk 0:00:36]}  b5 {[%clk 0:00:49]} 44. axb5 {[%clk 0:00:31]}  Rxb5+ {[%clk 0:00:50]} 45. Kc6 {[%clk 0:00:30]}  Rb4 {[%clk 0:00:45]} 46. Re5 {[%clk 0:00:31]}  a4 {[%clk 0:00:45]} 47. Ra5 {[%clk 0:00:24]}  Re4 {[%clk 0:00:43]} 48. Kd5 {[%clk 0:00:20]}  Rxe3 {[%clk 0:00:38]} 49. Rxa4 {[%clk 0:00:20]}  Rxg3 {[%clk 0:00:39]} 50. Ke5 {[%clk 0:00:21]}  Rf3 {[%clk 0:00:33]} 51. Ra6 {[%clk 0:00:15]}  Rf6 {[%clk 0:00:33]} 52. Rxf6+ {[%clk 0:00:14]}  gxf6+ {[%clk 0:00:34]} 53. Kf5 {[%clk 0:00:14]}  Ke7 {[%clk 0:00:34]} 54. Kf4 {[%clk 0:00:15]}  Ke6 {[%clk 0:00:35]} 55. Ke4 {[%clk 0:00:15]}  f5+ {[%clk 0:00:36]} 56. Kf4 {[%clk 0:00:16]}  Kf6 {[%clk 0:00:37]} 57. Kf3 {[%clk 0:00:16]}  Ke5 {[%clk 0:00:38]} 58. Ke3 {[%clk 0:00:17]}  f4+ {[%clk 0:00:39]} 59. Kf3 {[%clk 0:00:17]}  Kf5 {[%clk 0:00:40]} 60. Kf2 {[%clk 0:00:18]}  Ke4 {[%clk 0:00:41]} 61. Ke2 {[%clk 0:00:18]}  f3+ {[%clk 0:00:42]} 62. Kf2 {[%clk 0:00:19]}  Kf4 {[%clk 0:00:42]} 63. Kf1 {[%clk 0:00:19]}  Ke3 {[%clk 0:00:43]} 64. Ke1 {[%clk 0:00:20]}  f2+ {[%clk 0:00:44]} 65. Kf1 {[%clk 0:00:20]}  Kf3 {[%clk 0:00:44]} 1/2-1/2


[Site "https://www.chess.com"]

[Event "Titled Tuesday Blitz July 11 Late 2023"]
[White "Bjelobrk, Igor"]
[Black "Tahbaz, Arash"]
[WhiteFideId "4300726"]
[BlackFideId "12528846"]
[WhiteElo "2635"]
[BlackElo "2934"]
[Result "0-1"]
[Round "3"]
[TimeControl "180+2"]
[Date "2023.07.11"]
[WhiteClock "0:00:22"]
[BlackClock "0:00:52"]
[Board "24"]

1. d4 {[%clk 0:03:00]}  g6 {[%clk 0:02:58]} 2. e4 {[%clk 0:02:57]}  Bg7 {[%clk 0:02:58]} 3. Nf3 {[%clk 0:02:56]}  d6 {[%clk 0:02:59]} 4. Bd3 {[%clk 0:02:53]}  Nd7 {[%clk 0:02:58]} 5. O-O {[%clk 0:02:51]}  e5 {[%clk 0:02:59]} 6. c3 {[%clk 0:02:49]}  Ngf6 {[%clk 0:02:59]} 7. Re1 {[%clk 0:02:48]}  O-O {[%clk 0:02:59]} 8. dxe5 {[%clk 0:02:39]}  dxe5 {[%clk 0:03:00]} 9. a4 {[%clk 0:02:38]}  a5 {[%clk 0:02:59]} 10. Na3 {[%clk 0:02:38]}  Nc5 {[%clk 0:02:56]} 11. Bc2 {[%clk 0:02:26]}  Qxd1 {[%clk 0:02:55]} 12. Rxd1 {[%clk 0:02:23]}  Nfxe4 {[%clk 0:02:52]} 13. Be3 {[%clk 0:02:12]}  Be6 {[%clk 0:02:06]} 14. b4 {[%clk 0:02:00]}  Nxa4 {[%clk 0:01:45]} 15. Bxe4 {[%clk 0:01:51]}  Nxc3 {[%clk 0:01:45]} 16. Bxb7 {[%clk 0:01:50]}  Rab8 {[%clk 0:01:45]} 17. Bc6 {[%clk 0:01:44]}  axb4 {[%clk 0:01:34]} 18. Nc2 {[%clk 0:00:46]}  b3 {[%clk 0:01:33]} 19. Na3 {[%clk 0:00:40]}  b2 {[%clk 0:01:33]} 20. Rab1 {[%clk 0:00:40]}  Bf5 {[%clk 0:01:15]} 21. Bc5 {[%clk 0:00:35]}  Nxd1 {[%clk 0:01:03]} 22. Rxd1 {[%clk 0:00:22]}  Rfd8 {[%clk 0:00:52]} 0-1


[Site "https://www.chess.com"]

[Event "Titled Tuesday Blitz July 11 Late 2023"]
[White "Rustemov, Alexander"]
[Black "Di Berardino, Diego Rafael"]
[WhiteFideId "4119002"]
[BlackFideId "2105446"]
[WhiteElo "2916"]
[BlackElo "2621"]
[Result "0-1"]
[Round "3"]
[TimeControl "180+2"]
[Date "2023.07.11"]
[WhiteClock "0:00:06"]
[BlackClock "0:00:12"]
[Board "30"]

1. d4 {[%clk 0:03:00]}  Nf6 {[%clk 0:02:59]} 2. c4 {[%clk 0:03:01]}  g6 {[%clk 0:02:57]} 3. Nf3 {[%clk 0:03:01]}  Bg7 {[%clk 0:02:56]} 4. g3 {[%clk 0:03:02]}  d5 {[%clk 0:02:55]} 5. cxd5 {[%clk 0:03:01]}  Nxd5 {[%clk 0:02:55]} 6. Bg2 {[%clk 0:03:02]}  Nb6 {[%clk 0:02:52]} 7. O-O {[%clk 0:03:02]}  Nc6 {[%clk 0:02:52]} 8. e3 {[%clk 0:03:02]}  O-O {[%clk 0:02:52]} 9. Nc3 {[%clk 0:03:02]}  Re8 {[%clk 0:02:50]} 10. Re1 {[%clk 0:03:01]}  e5 {[%clk 0:02:45]} 11. d5 {[%clk 0:03:00]}  Na5 {[%clk 0:02:31]} 12. e4 {[%clk 0:02:59]}  c6 {[%clk 0:02:27]} 13. Bg5 {[%clk 0:02:51]}  f6 {[%clk 0:02:24]} 14. Be3 {[%clk 0:02:49]}  Nac4 {[%clk 0:02:21]} 15. dxc6 {[%clk 0:02:49]}  Nxe3 {[%clk 0:02:08]} 16. Qxd8 {[%clk 0:02:43]}  Rxd8 {[%clk 0:02:08]} 17. cxb7 {[%clk 0:02:43]}  Bxb7 {[%clk 0:02:08]} 18. Rxe3 {[%clk 0:02:43]}  Rac8 {[%clk 0:02:02]} 19. Re2 {[%clk 0:02:37]}  Ba6 {[%clk 0:01:58]} 20. Rc2 {[%clk 0:02:32]}  Bd3 {[%clk 0:01:49]} 21. Rcc1 {[%clk 0:02:30]}  Bh6 {[%clk 0:01:49]} 22. Re1 {[%clk 0:02:06]}  Kf7 {[%clk 0:01:38]} 23. Bf1 {[%clk 0:02:04]}  Nc4 {[%clk 0:01:34]} 24. Na4 {[%clk 0:01:54]}  Bc2 {[%clk 0:01:04]} 25. b3 {[%clk 0:01:50]}  Nb6 {[%clk 0:01:04]} 26. Nxb6 {[%clk 0:01:47]}  axb6 {[%clk 0:01:05]} 27. Bc4+ {[%clk 0:01:46]}  Ke7 {[%clk 0:01:03]} 28. Kg2 {[%clk 0:01:29]}  Rc5 {[%clk 0:00:57]} 29. a4 {[%clk 0:01:28]}  Bd3 {[%clk 0:00:52]} 30. Bd5 {[%clk 0:01:13]}  Rc3 {[%clk 0:00:50]} 31. b4 {[%clk 0:01:09]}  Rb8 {[%clk 0:00:44]} 32. a5 {[%clk 0:01:09]}  bxa5 {[%clk 0:00:44]} 33. bxa5 {[%clk 0:01:09]}  Rb2 {[%clk 0:00:36]} 34. Ra2 {[%clk 0:00:41]}  Rxa2 {[%clk 0:00:34]} 35. Bxa2 {[%clk 0:00:42]}  Ra3 {[%clk 0:00:35]} 36. Bd5 {[%clk 0:00:39]}  Rxa5 {[%clk 0:00:35]} 37. Rd1 {[%clk 0:00:36]}  Bc2 {[%clk 0:00:32]} 38. Re1 {[%clk 0:00:35]}  Ra3 {[%clk 0:00:31]} 39. Re2 {[%clk 0:00:33]}  Bd1 {[%clk 0:00:29]} 40. Ng1 {[%clk 0:00:24]}  Bxe2 {[%clk 0:00:28]} 41. Nxe2 {[%clk 0:00:25]}  f5 {[%clk 0:00:26]} 42. h4 {[%clk 0:00:24]}  Kf6 {[%clk 0:00:26]} 43. Ng1 {[%clk 0:00:23]}  Ra4 {[%clk 0:00:22]} 44. exf5 {[%clk 0:00:19]}  gxf5 {[%clk 0:00:23]} 45. Bg8 {[%clk 0:00:19]}  Kg7 {[%clk 0:00:22]} 46. Be6 {[%clk 0:00:18]}  Kf6 {[%clk 0:00:21]} 47. Bg8 {[%clk 0:00:18]}  Ra7 {[%clk 0:00:22]} 48. Nh3 {[%clk 0:00:18]}  e4 {[%clk 0:00:20]} 49. Bd5 {[%clk 0:00:17]}  Bc1 {[%clk 0:00:17]} 50. Kf1 {[%clk 0:00:17]}  h6 {[%clk 0:00:16]} 51. Bc6 {[%clk 0:00:14]}  Ke5 {[%clk 0:00:16]} 52. Be8 {[%clk 0:00:13]}  Ra1 {[%clk 0:00:15]} 53. Kg2 {[%clk 0:00:13]}  Ra2 {[%clk 0:00:16]} 54. Kf1 {[%clk 0:00:13]}  Rb2 {[%clk 0:00:16]} 55. h5 {[%clk 0:00:13]}  Bd2 {[%clk 0:00:13]} 56. Bg6 {[%clk 0:00:14]}  Kf6 {[%clk 0:00:13]} 57. Kg1 {[%clk 0:00:13]}  e3 {[%clk 0:00:10]} 58. fxe3 {[%clk 0:00:12]}  Bxe3+ {[%clk 0:00:10]} 59. Kf1 {[%clk 0:00:13]}  Rh2 {[%clk 0:00:10]} 60. Bh7 {[%clk 0:00:02]}  Rxh3 {[%clk 0:00:08]} 61. Kg2 {[%clk 0:00:03]}  Rxh5 {[%clk 0:00:08]} 62. Bg8 {[%clk 0:00:03]}  Rg5 {[%clk 0:00:08]} 63. Bc4 {[%clk 0:00:02]}  f4 {[%clk 0:00:08]} 64. Kf3 {[%clk 0:00:01]}  Rxg3+ {[%clk 0:00:08]} 65. Ke4 {[%clk 0:00:02]}  h5 {[%clk 0:00:08]} 66. Be2 {[%clk 0:00:03]}  h4 {[%clk 0:00:09]} 67. Bf3 {[%clk 0:00:03]}  h3 {[%clk 0:00:09]} 68. Bh1 {[%clk 0:00:03]}  Rg1 {[%clk 0:00:09]} 69. Bf3 {[%clk 0:00:04]}  h2 {[%clk 0:00:09]} 70. Kd5 {[%clk 0:00:04]}  h1=Q {[%clk 0:00:10]} 71. Bxh1 {[%clk 0:00:04]}  Rxh1 {[%clk 0:00:10]} 72. Ke4 {[%clk 0:00:04]}  Kg5 {[%clk 0:00:11]} 73. Kf3 {[%clk 0:00:05]}  Rh3+ {[%clk 0:00:11]} 74. Kg2 {[%clk 0:00:05]}  Rg3+ {[%clk 0:00:11]} 75. Kh1 {[%clk 0:00:05]}  Kg4 {[%clk 0:00:11]} 76. Kh2 {[%clk 0:00:06]}  Kf3 {[%clk 0:00:11]} 77. Kh1 {[%clk 0:00:06]}  Kf2 {[%clk 0:00:11]} 78. Kh2 {[%clk 0:00:06]}  Ba7 {[%clk 0:00:11]} 79. Kh1 {[%clk 0:00:06]}  Rh3# {[%clk 0:00:12]} 0-1


[Site "https://www.chess.com"]

[Event "Titled Tuesday Blitz July 11 Late 2023"]
[White "Manukyan, Artyom"]
[Black "Zhigalko, Sergei"]
[WhiteFideId "13305786"]
[BlackFideId "13502956"]
[WhiteElo "2578"]
[BlackElo "2880"]
[Result "0-1"]
[Round "3"]
[TimeControl "180+2"]
[Date "2023.07.11"]
[WhiteClock "0:00:01"]
[BlackClock "0:00:40"]
[Board "32"]

1. e4 {[%clk 0:03:00]}  c5 {[%clk 0:02:59]} 2. Nc3 {[%clk 0:02:50]}  Nc6 {[%clk 0:02:59]} 3. Bb5 {[%clk 0:02:50]}  Nd4 {[%clk 0:02:59]} 4. Nf3 {[%clk 0:02:48]}  e6 {[%clk 0:03:00]} 5. O-O {[%clk 0:02:43]}  a6 {[%clk 0:03:00]} 6. Bd3 {[%clk 0:02:42]}  Nxf3+ {[%clk 0:03:00]} 7. Qxf3 {[%clk 0:02:43]}  Qc7 {[%clk 0:03:01]} 8. b3 {[%clk 0:02:38]}  Bd6 {[%clk 0:03:00]} 9. h3 {[%clk 0:02:36]}  Ne7 {[%clk 0:03:00]} 10. Bb2 {[%clk 0:02:35]}  O-O {[%clk 0:03:00]} 11. Rae1 {[%clk 0:02:33]}  Ng6 {[%clk 0:02:45]} 12. Qh5 {[%clk 0:01:41]}  Be5 {[%clk 0:02:41]} 13. g3 {[%clk 0:01:30]}  b5 {[%clk 0:02:40]} 14. Nd1 {[%clk 0:01:22]}  c4 {[%clk 0:02:23]} 15. Bxe5 {[%clk 0:01:05]}  Nxe5 {[%clk 0:02:11]} 16. Be2 {[%clk 0:01:03]}  Bb7 {[%clk 0:02:05]} 17. f4 {[%clk 0:00:51]}  Nc6 {[%clk 0:02:05]} 18. c3 {[%clk 0:00:41]}  f5 {[%clk 0:02:00]} 19. Bf3 {[%clk 0:00:37]}  Ne7 {[%clk 0:02:01]} 20. e5 {[%clk 0:00:35]}  cxb3 {[%clk 0:01:18]} 21. axb3 {[%clk 0:00:33]}  b4 {[%clk 0:01:19]} 22. Bxb7 {[%clk 0:00:27]}  Qxb7 {[%clk 0:01:18]} 23. Qf3 {[%clk 0:00:25]}  Nc6 {[%clk 0:01:09]} 24. c4 {[%clk 0:00:13]}  Qa7+ {[%clk 0:01:09]} 25. Qe3 {[%clk 0:00:12]}  Nd4 {[%clk 0:01:10]} 26. Nf2 {[%clk 0:00:04]}  a5 {[%clk 0:00:51]} 27. Rc1 {[%clk 0:00:04]}  Rfc8 {[%clk 0:00:44]} 28. c5 {[%clk 0:00:03]}  Rxc5 {[%clk 0:00:39]} 29. Qxd4 {[%clk 0:00:02]}  Rxc1 {[%clk 0:00:39]} 30. Qxa7 {[%clk 0:00:01]}  Rxf1+ {[%clk 0:00:40]} 0-1


[Site "https://www.chess.com"]

[Event "Titled Tuesday Blitz July 11 Late 2023"]
[White "Fiorito, Francisco"]
[Black "Dardha, Daniel"]
[WhiteFideId "180165"]
[BlackFideId "240990"]
[WhiteElo "2571"]
[BlackElo "2868"]
[Result "0-1"]
[Round "3"]
[TimeControl "180+2"]
[Date "2023.07.11"]
[WhiteClock "0:00:01"]
[BlackClock "0:00:57"]
[Board "33"]

1. d4 {[%clk 0:03:00]}  Nf6 {[%clk 0:02:57]} 2. Nc3 {[%clk 0:03:00]}  d5 {[%clk 0:02:55]} 3. Bf4 {[%clk 0:03:00]}  a6 {[%clk 0:02:53]} 4. e3 {[%clk 0:02:59]}  c5 {[%clk 0:02:53]} 5. dxc5 {[%clk 0:02:58]}  Qa5 {[%clk 0:02:52]} 6. Bd3 {[%clk 0:02:56]}  Nc6 {[%clk 0:02:51]} 7. a3 {[%clk 0:02:46]}  Qxc5 {[%clk 0:02:49]} 8. Nf3 {[%clk 0:02:45]}  Bg4 {[%clk 0:02:46]} 9. Be2 {[%clk 0:02:35]}  e6 {[%clk 0:02:46]} 10. O-O {[%clk 0:02:31]}  Be7 {[%clk 0:02:46]} 11. h3 {[%clk 0:02:26]}  Bh5 {[%clk 0:02:45]} 12. Ne5 {[%clk 0:02:06]}  Bxe2 {[%clk 0:02:43]} 13. Qxe2 {[%clk 0:02:07]}  O-O {[%clk 0:02:42]} 14. Nd3 {[%clk 0:01:56]}  Qa7 {[%clk 0:02:39]} 15. Rad1 {[%clk 0:01:52]}  Rfd8 {[%clk 0:02:34]} 16. Ne5 {[%clk 0:01:44]}  Rac8 {[%clk 0:02:33]} 17. Nxc6 {[%clk 0:01:41]}  bxc6 {[%clk 0:02:27]} 18. e4 {[%clk 0:01:35]}  Qb7 {[%clk 0:02:27]} 19. Bc1 {[%clk 0:01:18]}  d4 {[%clk 0:02:24]} 20. Nb1 {[%clk 0:01:14]}  c5 {[%clk 0:02:25]} 21. Nd2 {[%clk 0:01:14]}  Qb5 {[%clk 0:02:20]} 22. Rfe1 {[%clk 0:00:17]}  c4 {[%clk 0:02:17]} 23. e5 {[%clk 0:00:18]}  d3 {[%clk 0:02:10]} 24. cxd3 {[%clk 0:00:19]}  cxd3 {[%clk 0:02:11]} 25. Qf3 {[%clk 0:00:16]}  Ne8 {[%clk 0:02:11]} 26. Ne4 {[%clk 0:00:16]}  Rc2 {[%clk 0:02:08]} 27. Bg5 {[%clk 0:00:12]}  Bxg5 {[%clk 0:01:59]} 28. Nxg5 {[%clk 0:00:13]}  Rc7 {[%clk 0:01:59]} 29. Rd2 {[%clk 0:00:11]}  h6 {[%clk 0:01:58]} 30. Ne4 {[%clk 0:00:10]}  Qxe5 {[%clk 0:01:57]} 31. Rxd3 {[%clk 0:00:11]}  Rxd3 {[%clk 0:01:56]} 32. Qxd3 {[%clk 0:00:12]}  Qxb2 {[%clk 0:01:35]} 33. Qd8 {[%clk 0:00:10]}  Kf8 {[%clk 0:01:35]} 34. Nd6 {[%clk 0:00:10]}  Re7 {[%clk 0:01:36]} 35. Nc8 {[%clk 0:00:08]}  Rb7 {[%clk 0:01:36]} 36. Nd6 {[%clk 0:00:08]}  Rb8 {[%clk 0:01:37]} 37. Qd7 {[%clk 0:00:07]}  Nxd6 {[%clk 0:01:34]} 38. Qxd6+ {[%clk 0:00:08]}  Kg8 {[%clk 0:01:35]} 39. Qxa6 {[%clk 0:00:09]}  Qc3 {[%clk 0:01:31]} 40. Re3 {[%clk 0:00:09]}  Qd2 {[%clk 0:01:25]} 41. Rf3 {[%clk 0:00:08]}  Qe1+ {[%clk 0:01:19]} 42. Kh2 {[%clk 0:00:08]}  Qe5+ {[%clk 0:01:18]} 43. Rg3 {[%clk 0:00:05]}  h5 {[%clk 0:01:16]} 44. h4 {[%clk 0:00:05]}  Qf4 {[%clk 0:01:13]} 45. Kh3 {[%clk 0:00:04]}  Qxf2 {[%clk 0:01:13]} 46. Qd3 {[%clk 0:00:02]}  Qg1 {[%clk 0:01:05]} 47. Rf3 {[%clk 0:00:02]}  Rb2 {[%clk 0:00:56]} 48. Qd8+ {[%clk 0:00:02]}  Kh7 {[%clk 0:00:56]} 49. Qd3+ {[%clk 0:00:03]}  f5 {[%clk 0:00:57]} 50. Rg3 {[%clk 0:00:01]}  Qh1# {[%clk 0:00:57]} 0-1


[Site "https://www.chess.com"]

[Event "Titled Tuesday Blitz July 11 Late 2023"]
[White "Karas, Marek"]
[Black "Kravtsiv, Martyn"]
[WhiteFideId "14928558"]
[BlackFideId "14113147"]
[WhiteElo "2481"]
[BlackElo "2819"]
[Result "0-1"]
[Round "3"]
[TimeControl "180+2"]
[Date "2023.07.11"]
[WhiteClock "0:00:00"]
[BlackClock "0:00:07"]
[Board "36"]

1. d4 {[%clk 0:03:00]}  d5 {[%clk 0:02:59]} 2. Nf3 {[%clk 0:03:01]}  Nf6 {[%clk 0:02:58]} 3. c4 {[%clk 0:03:01]}  e6 {[%clk 0:02:56]} 4. Nc3 {[%clk 0:03:00]}  Nbd7 {[%clk 0:02:56]} 5. cxd5 {[%clk 0:02:59]}  exd5 {[%clk 0:02:56]} 6. Bg5 {[%clk 0:03:00]}  Bb4 {[%clk 0:02:51]} 7. e3 {[%clk 0:02:56]}  c5 {[%clk 0:02:49]} 8. Be2 {[%clk 0:02:53]}  Qa5 {[%clk 0:02:48]} 9. O-O {[%clk 0:02:46]}  Bxc3 {[%clk 0:02:46]} 10. bxc3 {[%clk 0:02:47]}  Ne4 {[%clk 0:02:37]} 11. c4 {[%clk 0:02:39]}  dxc4 {[%clk 0:02:07]} 12. Bxc4 {[%clk 0:02:22]}  O-O {[%clk 0:02:06]} 13. Bf4 {[%clk 0:02:12]}  Ndf6 {[%clk 0:02:01]} 14. h3 {[%clk 0:01:51]}  Bd7 {[%clk 0:01:31]} 15. Bd3 {[%clk 0:01:33]}  Bb5 {[%clk 0:01:20]} 16. Bxb5 {[%clk 0:01:30]}  Qxb5 {[%clk 0:01:21]} 17. dxc5 {[%clk 0:01:25]}  Qxc5 {[%clk 0:01:18]} 18. Nd4 {[%clk 0:01:22]}  Rac8 {[%clk 0:01:11]} 19. Qb3 {[%clk 0:01:19]}  Nd2 {[%clk 0:01:10]} 20. Qxb7 {[%clk 0:01:16]}  Nxf1 {[%clk 0:01:10]} 21. Rxf1 {[%clk 0:01:17]}  h6 {[%clk 0:01:01]} 22. Bg3 {[%clk 0:01:05]}  a5 {[%clk 0:00:48]} 23. Qa6 {[%clk 0:01:02]}  Qd5 {[%clk 0:00:45]} 24. Ra1 {[%clk 0:00:46]}  Ne4 {[%clk 0:00:43]} 25. Bf4 {[%clk 0:00:43]}  Rfe8 {[%clk 0:00:38]} 26. Qd3 {[%clk 0:00:36]}  Qc4 {[%clk 0:00:34]} 27. Qxc4 {[%clk 0:00:29]}  Rxc4 {[%clk 0:00:32]} 28. Rb1 {[%clk 0:00:30]}  Nc3 {[%clk 0:00:31]} 29. Rc1 {[%clk 0:00:20]}  Rec8 {[%clk 0:00:29]} 30. Kh2 {[%clk 0:00:18]}  Nd5 {[%clk 0:00:26]} 31. Rxc4 {[%clk 0:00:15]}  Rxc4 {[%clk 0:00:26]} 32. Bd6 {[%clk 0:00:15]}  Nb4 {[%clk 0:00:20]} 33. a3 {[%clk 0:00:15]}  Nc2 {[%clk 0:00:18]} 34. Nxc2 {[%clk 0:00:15]}  Rxc2 {[%clk 0:00:18]} 35. Kg3 {[%clk 0:00:15]}  f6 {[%clk 0:00:18]} 36. Kf3 {[%clk 0:00:11]}  Kf7 {[%clk 0:00:19]} 37. g4 {[%clk 0:00:09]}  g6 {[%clk 0:00:18]} 38. Kg3 {[%clk 0:00:06]}  Ra2 {[%clk 0:00:18]} 39. Kf3 {[%clk 0:00:07]}  Ke6 {[%clk 0:00:17]} 40. Bf8 {[%clk 0:00:07]}  Kd5 {[%clk 0:00:18]} 41. h4 {[%clk 0:00:05]}  a4 {[%clk 0:00:17]} 42. h5 {[%clk 0:00:05]}  g5 {[%clk 0:00:12]} 43. e4+ {[%clk 0:00:03]}  Ke6 {[%clk 0:00:12]} 44. Ke3 {[%clk 0:00:02]}  Rb2 {[%clk 0:00:11]} 45. Bc5 {[%clk 0:00:02]}  Rc2 {[%clk 0:00:10]} 46. Bb4 {[%clk 0:00:01]}  Rb2 {[%clk 0:00:10]} 47. Bf8 {[%clk 0:00:01]}  Rb3+ {[%clk 0:00:10]} 48. Ke2 {[%clk 0:00:01]}  Kf7 {[%clk 0:00:09]} 49. Bc5 {[%clk 0:00:02]}  Rc3 {[%clk 0:00:09]} 50. Bb4 {[%clk 0:00:02]}  Rb3 {[%clk 0:00:10]} 51. Bc5 {[%clk 0:00:02]}  Ke6 {[%clk 0:00:09]} 52. Bf8 {[%clk 0:00:02]}  Ke5 {[%clk 0:00:09]} 53. f3 {[%clk 0:00:01]}  Kd4 {[%clk 0:00:08]} 54. Bxh6 {[%clk 0:00:01]}  Rxa3 {[%clk 0:00:07]} 55. Bg7 {[%clk 0:00:01]}  Ra2+ {[%clk 0:00:08]} 56. Kf1 {[%clk 0:00:02]}  Ke3 {[%clk 0:00:07]} 57. h6 {[%clk 0:00:01]}  Kxf3 {[%clk 0:00:07]} 58. Kg1 {[%clk 0:00:02]}  Rg2+ {[%clk 0:00:07]} 59. Kf1 {[%clk 0:00:02]}  Rh2 {[%clk 0:00:07]} 60. Kg1 {[%clk 0:00:00]}  Rh4 {[%clk 0:00:07]} 0-1


[Site "https://www.chess.com"]

[Event "Titled Tuesday Blitz July 11 Late 2023"]
[White "SergioMoralesG"]
[Black "Talibov, Shiroghlan"]
[BlackFideId "13429078"]
[WhiteElo "2464"]
[BlackElo "2816"]
[Result "0-1"]
[Round "3"]
[TimeControl "180+2"]
[Date "2023.07.11"]
[WhiteClock "0:00:00"]
[BlackClock "0:00:28"]
[Board "37"]

1. d4 {[%clk 0:03:00]}  d5 {[%clk 0:02:54]} 2. c4 {[%clk 0:03:00]}  e6 {[%clk 0:02:48]} 3. Nf3 {[%clk 0:02:59]}  Nf6 {[%clk 0:02:46]} 4. Nc3 {[%clk 0:02:59]}  h6 {[%clk 0:02:40]} 5. cxd5 {[%clk 0:02:56]}  exd5 {[%clk 0:02:39]} 6. Bf4 {[%clk 0:02:56]}  c6 {[%clk 0:02:38]} 7. h3 {[%clk 0:02:53]}  Bf5 {[%clk 0:02:38]} 8. e3 {[%clk 0:02:49]}  Bd6 {[%clk 0:02:38]} 9. Bd3 {[%clk 0:02:40]}  Bxd3 {[%clk 0:02:35]} 10. Qxd3 {[%clk 0:02:39]}  Bxf4 {[%clk 0:02:34]} 11. exf4 {[%clk 0:02:40]}  O-O {[%clk 0:02:24]} 12. O-O {[%clk 0:02:39]}  Nbd7 {[%clk 0:02:25]} 13. Ne5 {[%clk 0:02:35]}  Re8 {[%clk 0:02:24]} 14. b4 {[%clk 0:02:31]}  Ne4 {[%clk 0:02:19]} 15. Nxe4 {[%clk 0:02:21]}  dxe4 {[%clk 0:02:20]} 16. Qc4 {[%clk 0:02:14]}  Qe7 {[%clk 0:02:07]} 17. Rfe1 {[%clk 0:02:10]}  Nf6 {[%clk 0:02:06]} 18. a4 {[%clk 0:02:01]}  a6 {[%clk 0:02:03]} 19. b5 {[%clk 0:01:52]}  cxb5 {[%clk 0:02:03]} 20. axb5 {[%clk 0:01:53]}  a5 {[%clk 0:02:04]} 21. b6 {[%clk 0:01:45]}  Red8 {[%clk 0:01:59]} 22. Qb5 {[%clk 0:01:33]}  Rd5 {[%clk 0:01:50]} 23. Qc4 {[%clk 0:01:24]}  Rad8 {[%clk 0:01:48]} 24. Red1 {[%clk 0:01:18]}  Ne8 {[%clk 0:01:37]} 25. Ra4 {[%clk 0:01:13]}  Kh7 {[%clk 0:01:36]} 26. Qa2 {[%clk 0:01:06]}  f6 {[%clk 0:01:32]} 27. Ng4 {[%clk 0:01:05]}  Qd6 {[%clk 0:01:07]} 28. Ne3 {[%clk 0:01:03]}  Rb5 {[%clk 0:01:06]} 29. Rxa5 {[%clk 0:00:56]}  Rxa5 {[%clk 0:01:07]} 30. Qxa5 {[%clk 0:00:55]}  Qxf4 {[%clk 0:01:07]} 31. Qb4 {[%clk 0:00:25]}  Nd6 {[%clk 0:01:03]} 32. Nd5 {[%clk 0:00:20]}  Qg5 {[%clk 0:01:02]} 33. Nc7 {[%clk 0:00:18]}  Qf5 {[%clk 0:00:53]} 34. d5 {[%clk 0:00:18]}  Nf7 {[%clk 0:00:47]} 35. d6 {[%clk 0:00:10]}  Rd7 {[%clk 0:00:40]} 36. Ne8 {[%clk 0:00:05]}  Qe5 {[%clk 0:00:35]} 37. Nc7 {[%clk 0:00:01]}  Rxd6 {[%clk 0:00:34]} 38. Re1 {[%clk 0:00:01]}  f5 {[%clk 0:00:33]} 39. Qc4 {[%clk 0:00:00]}  Ng5 {[%clk 0:00:28]} 0-1


[Site "https://www.chess.com"]